bitfinex/quotes_ETHUSD_20220115
["timestamp","ask_amount","ask_price","bid_price","bid_amount"]
[1642243622038,1.20060854,3328.2,3328.0,0.00341054]
[1642243622239,0.045463,3328.1,3327.8,0.00454739]
[1642243622438,1.15514554,3328.2,3327.8,0.00454739]
[1642243622439,0.045463,3328.0,3327.8,0.00454739]
[1642243622639,1.15514554,3328.2,3327.8,0.00454739]
[1642243622640,0.045463,3327.9,3327.8,0.00454739]
[1642243623042,0.045463,3327.9,3327.7,0.00511581]
[1642243623241,1.15514554,3328.2,3327.7,0.00511581]
[1642243623543,0.045463,3327.9,3327.7,0.00511581]
[1642243623940,0.045463,3327.9,3327.4,0.00682108]
[1642243624341,1.15514554,3328.2,3327.4,0.00682108]
[1642243624989,2.37584654,3328.1,3327.4,0.00682108]
[1642243625388,0.045463,3327.9,3327.4,0.00682108]
[1642243625688,0.75154,3327.7,3327.4,0.00682108]
[1642243626091,0.75154,3327.7,3327.3,0.00738951]
[1642243626288,0.75154,3327.7,3327.2,0.00795793]
[1642243626489,1.45915888,3327.6,3327.2,0.00795793]
[1642243626888,1.45915888,3327.6,3327.1,0.00852635]
[1642243627788,0.045463,3327.3,3327.1,0.00852635]
[1642243627988,1.45915888,3327.6,3327.1,0.00852635]
[1642243628237,0.045463,3327.4,3327.1,0.00852635]
[1642243628642,0.045463,3327.3,3327.1,0.00852635]
[1642243631243,1.45915888,3327.6,3327.1,0.00852635]
[1642243631438,0.045463,3327.4,3327.1,0.00852635]
[1642243632086,1.45915888,3327.6,3327.1,0.75996835]
[1642243632287,4.9149,3328.2,3327.2,2.57360491]
[1642243632491,0.045463,3327.8,3327.2,2.58156284]
[1642243632686,0.045463,3327.7,3327.3,0.00738951]
[1642243632885,0.045463,3327.7,3327.5,1.50263]
[1642243633086,0.51427679,3328.1,3327.5,1.50263]
[1642243633286,0.045463,3327.8,3327.7,1.21889904]
[1642243633488,0.51427679,3328.1,3327.7,1.97019014]
[1642243633687,0.51427679,3328.1,3327.8,1.69610315]
[1642243633890,0.51427679,3328.1,3327.8,1.70065054]
[1642243634087,3.7432,3328.2,3327.9,0.00397896]
[1642243634488,0.045463,3328.3,3327.9,0.00397896]
[1642243634789,0.045463,3328.2,3328.0,1.49693403]
[1642243634987,0.045463,3328.2,3328.1,0.7512295]
[1642243635187,0.045463,3328.3,3328.1,0.75407162]
[1642243635587,0.045463,3328.3,3328.2,0.00227369]
[1642243636237,0.73350736,3329.0,3328.2,0.00227369]
[1642243636637,0.045463,3328.6,3328.2,0.00227369]
[1642243636837,0.00170527,3328.9,3328.2,0.00227369]
[1642243636838,0.045463,3328.3,3328.2,0.00227369]
[1642243637037,0.045463,3328.3,3328.1,0.00284212]
[1642243637240,0.045463,3328.2,3328.1,0.00284212]
[1642243637840,1.2338546,3328.2,3328.1,0.00284212]
[1642243639045,1.2338546,3328.2,3327.7,4.22386454]
[1642243639046,1.2338546,3328.2,3328.0,0.00341054]
[1642243639242,1.2338546,3328.2,3327.8,0.00454739]
[1642243639243,1.74808587,3328.2,3327.8,0.00454739]
[1642243639498,0.045463,3328.1,3327.8,0.00454739]
[1642243639891,1.70262287,3328.2,3327.8,0.00454739]
[1642243640291,0.045463,3327.9,3327.8,0.00454739]
[1642243640491,0.045463,3328.0,3327.8,0.00454739]
[1642243640693,0.045463,3327.9,3327.8,0.00454739]
[1642243640992,0.51423127,3328.1,3327.8,0.00454739]
[1642243641193,0.045463,3328.0,3327.8,0.00454739]
[1642243641393,0.51423127,3328.1,3327.8,0.00454739]
[1642243641893,0.045463,3328.0,3327.8,0.00454739]
[1642243642094,1.1883916,3328.2,3327.8,0.00454739]
[1642243642095,0.045463,3327.9,3327.8,0.00454739]
[1642243642394,1.1883916,3328.2,3327.8,0.00454739]
[1642243642995,0.045463,3328.0,3327.8,0.00454739]
[1642243643839,1.1883916,3328.2,3327.8,0.00454739]
[1642243644039,0.045463,3328.0,3327.8,0.00454739]
[1642243644641,0.045463,3328.1,3327.8,0.00454739]
[1642243645342,1.2338546,3328.2,3327.8,0.00454739]
[1642243645943,0.045463,3328.1,3327.8,0.00454739]
[1642243647390,0.045463,3328.1,3327.9,1.54328027]
[1642243647793,0.045463,3328.1,3328.0,0.00341054]
[1642243648393,0.045463,3328.1,3327.7,2.72152464]
[1642243648394,0.045463,3328.1,3327.8,0.00454739]
[1642243649796,0.045463,3328.1,3328.0,0.751262]
[1642243650196,0.045463,3328.1,3328.0,0.75467254]
[1642243650845,1.2371325,3328.4,3328.0,1.95852372]
[1642243651040,0.045463,3328.1,3328.0,0.75467254]
[1642243651239,1.2371325,3328.4,3328.1,0.00284212]
[1642243651439,0.045463,3328.2,3328.0,0.75467254]
[1642243651639,1.2371325,3328.4,3328.1,0.00284212]
[1642243651839,0.045463,3328.2,3328.1,0.00284212]
[1642243652043,0.045463,3328.2,3327.8,0.00454739]
[1642243652239,0.045463,3327.9,3327.8,0.00454739]
[1642243652439,2.42490816,3328.3,3327.8,0.00454739]
[1642243652640,0.045463,3327.9,3327.8,0.00454739]
[1642243653040,1.44650367,3327.9,3327.8,0.00454739]
[1642243653642,1.40104067,3327.9,3327.8,0.00454739]
[1642243653843,0.75138,3328.4,3327.8,0.00454739]
[1642243654044,0.045463,3328.2,3327.8,0.00454739]
[1642243654495,0.045463,3328.1,3327.8,0.00454739]
[1642243654890,1.55738145,3328.0,3327.8,0.00454739]
[1642243655090,1.1717,3328.7,3327.8,0.00454739]
[1642243655291,5.41782,3329.0,3327.8,0.00454739]
[1642243655292,0.045463,3328.3,3327.8,0.00454739]
[1642243655491,0.045463,3328.2,3327.8,0.00454739]
[1642243655691,0.75242685,3328.8,3327.8,0.00454739]
[1642243655692,0.045463,3328.1,3327.8,0.00454739]
[1642243656291,0.045463,3328.1,3327.9,0.75128]
[1642243656493,0.045463,3328.1,3328.0,1.87084871]
[1642243656691,0.045463,3328.1,3328.0,1.87425925]
[1642243657092,0.045463,3328.2,3328.0,1.87425925]
[1642243657395,0.045463,3328.2,3328.1,0.00284212]
[1642243657592,1.34504871,3328.5,3328.1,0.00284212]
[1642243657793,0.045463,3328.2,3328.1,0.00284212]
[1642243657993,0.045463,3328.3,3328.1,0.00284212]
[1642243658239,0.045463,3328.4,3328.1,0.00284212]
[1642243658441,0.045463,3328.4,3328.2,0.75125]
[1642243658641,0.045463,3328.4,3328.2,1.5024352]
[1642243658841,0.045463,3328.4,3328.3,0.00170527]
[1642243659443,0.045463,3328.5,3328.3,0.00170527]
[1642243659640,1.26757875,3328.5,3328.3,0.00170527]
[1642243659945,0.045463,3328.5,3328.3,0.00170527]
[1642243660343,0.00113685,3328.8,3328.4,0.7511573]
[1642243660643,0.00113685,3328.8,3328.6,0.75111]
[1642243661041,0.5141472,3328.7,3328.6,0.75111]
[1642243661444,0.5596102,3328.7,3328.3,0.00170527]
[1642243661643,0.045463,3328.4,3328.3,0.00170527]
[1642243661843,0.045463,3328.4,3328.1,0.00284212]
[1642243662501,0.5141472,3328.3,3328.1,0.00284212]
[1642243662695,2.05584887,3328.3,3328.1,0.00284212]
[1642243663696,0.5141472,3328.2,3328.1,0.00284212]
[1642243664697,0.5141472,3328.2,3328.1,2.06303938]
[1642243665102,0.5141472,3328.2,3328.1,0.00284212]
[1642243665301,0.045463,3328.3,3328.1,1.51480513]
[1642243665497,0.5596102,3328.4,3328.1,1.51480513]
[1642243665748,0.5596102,3328.4,3328.2,0.00227369]
[1642243665949,0.5141472,3328.4,3328.2,0.00227369]
[1642243666149,0.5596102,3328.4,3328.2,0.00227369]
[1642243666749,0.5141472,3328.3,3328.2,0.00227369]
[1642243668548,0.5596102,3328.3,3328.2,0.00227369]
[1642243669996,0.5596102,3328.3,3327.9,0.00397896]
[1642243670203,0.045463,3328.1,3327.8,0.00454739]
[1642243670395,0.045463,3328.0,3327.8,0.00454739]
[1642243670793,0.045463,3328.0,3327.8,1.32605302]
[1642243671196,0.045463,3328.1,3327.9,0.00397896]
[1642243671598,0.045463,3328.0,3327.9,0.00397896]
[1642243673646,0.75131,3328.7,3327.9,2.11987553]
[1642243673847,0.045463,3328.3,3327.9,2.11987553]
[1642243674044,0.045463,3328.2,3328.0,0.00341054]
[1642243674645,0.045463,3328.2,3327.9,0.00397896]
[1642243674845,0.045463,3328.2,3327.9,2.0660264]
[1642243675045,0.045463,3328.2,3327.9,0.00397896]
[1642243675247,0.045463,3328.2,3328.0,0.00341054]
[1642243675449,0.045463,3328.2,3327.8,1.32150563]
[1642243675450,0.045463,3328.1,3327.9,0.00397896]
[1642243675745,1.19905219,3328.6,3327.9,0.00397896]
[1642243675946,0.045463,3328.2,3327.9,0.00397896]
[1642243676145,1.53243389,3328.1,3327.9,2.13183549]
[1642243676348,0.045463,3328.1,3327.9,0.00397896]
[1642243676547,0.55971215,3328.1,3328.0,0.00341054]
[1642243676745,0.55971215,3328.1,3327.9,0.00397896]
[1642243677796,0.55971215,3328.1,3327.8,0.00454739]
[1642243677999,0.045463,3328.1,3327.8,0.00454739]
[1642243679598,0.045463,3328.1,3327.8,2.07945147]
[1642243679998,0.045463,3328.1,3327.9,0.00397896]
[1642243680200,0.045463,3328.3,3327.9,0.00397896]
[1642243680401,0.045463,3328.3,3327.8,0.00454739]
[1642243680605,1.46352815,3328.5,3327.9,0.00397896]
[1642243680852,1.46352815,3328.5,3327.8,0.00454739]
[1642243680853,0.045463,3328.1,3327.8,0.00454739]
[1642243681051,0.045463,3328.0,3327.8,0.00454739]
[1642243681449,0.51425358,3328.2,3327.8,0.00454739]
[1642243681652,0.045463,3328.0,3327.8,0.00454739]
[1642243681851,0.045463,3327.9,3327.8,0.00454739]
[1642243684895,0.045463,3328.0,3327.9,1.30765773]
[1642243685295,0.045463,3328.0,3327.9,1.31163669]
[1642243685800,0.045463,3328.2,3327.9,3.7767126]
[1642243686095,0.7513,3328.8,3328.0,0.00341054]
[1642243686295,0.7513,3328.8,3328.0,0.75466884]
[1642243686498,0.045463,3328.4,3328.0,0.75466884]
[1642243686697,0.5142313,3328.7,3328.0,0.75466884]
[1642243686698,0.045463,3328.3,3328.1,1.34697068]
[1642243686900,1.67744619,3328.7,3328.1,1.34697068]
[1642243687098,1.67744619,3328.7,3328.2,0.00227369]
[1642243687298,0.045463,3328.3,3328.2,0.00227369]
[1642243687496,0.045463,3328.3,3328.0,0.75467724]
[1642243687699,0.045463,3328.2,3328.1,0.00284212]
[1642243688098,0.045463,3328.2,3328.1,1.29381966]
[1642243690046,0.045463,3328.2,3328.1,0.00284212]
[1642243690447,0.045463,3328.2,3327.9,0.00397896]
[1642243690650,4.42020581,3329.1,3327.9,0.00397896]
[1642243690852,0.045463,3328.7,3327.9,0.00397896]
[1642243691047,0.00113685,3328.8,3328.4,1.51317747]
[1642243691248,0.045463,3328.5,3328.4,1.51317747]
[1642243691648,0.045463,3328.5,3328.4,1.51431432]
[1642243691848,1.23738455,3328.5,3328.4,0.00113685]
[1642243692096,0.04659985,3328.8,3328.4,0.00113685]
[1642243692297,0.51420142,3328.5,3328.4,0.00113685]
[1642243692696,0.55966442,3328.5,3328.4,0.00113685]
[1642243692895,0.51420142,3328.5,3328.4,1.28605317]
[1642243693095,1.85178591,3328.5,3328.4,3.36395382]
[1642243693296,0.51420142,3328.5,3328.4,1.28605317]
[1642243693897,0.51420142,3328.5,3328.4,0.00113685]
[1642243694098,0.55966442,3328.5,3328.4,0.00113685]
[1642243694497,0.55966442,3328.5,3328.3,0.00170527]
[1642243694698,0.045463,3328.4,3328.3,0.00170527]
[1642243695098,0.55966442,3328.4,3328.3,0.00170527]
[1642243695297,0.55966442,3328.4,3328.2,1.28211798]
[1642243695748,0.55966442,3328.4,3328.3,0.00170527]
[1642243695948,0.55966442,3328.4,3328.3,2.07024467]
[1642243695949,0.51420142,3328.4,3328.3,2.07024467]
[1642243696153,0.51420142,3328.4,3328.3,2.11465432]
[1642243696953,0.51420142,3328.4,3328.3,0.00170527]
[1642243697149,0.39213283,3328.4,3328.3,0.00170527]
[1642243697750,0.045463,3328.4,3328.3,0.00170527]
[1642243698757,1.45787961,3328.7,3328.3,0.00170527]
[1642243698951,0.045463,3328.5,3328.3,0.00170527]
[1642243699352,1.45787961,3328.7,3328.3,2.15995486]
[1642243699596,0.045463,3328.6,3328.3,0.00170527]
[1642243699795,0.045463,3328.5,3328.4,0.00113685]
[1642243699997,0.045463,3328.5,3328.3,0.00170527]
[1642243700496,0.045463,3328.5,3328.3,2.25519077]
[1642243700695,0.045463,3328.5,3328.3,1.50400077]
[1642243700897,0.045463,3328.5,3328.4,0.00113685]
[1642243701300,0.045463,3328.5,3328.3,0.00170527]
[1642243703098,0.045463,3328.4,3328.3,0.00170527]
[1642243703345,0.045463,3328.4,3327.9,0.00397896]
[1642243703546,0.045463,3328.2,3327.9,0.00397896]
[1642243703747,0.045463,3328.1,3327.9,0.00397896]
[1642243703953,1.23378853,3328.0,3327.9,0.00397896]
[1642243705048,1.23378853,3328.0,3327.8,0.00454739]
[1642243705249,0.045463,3328.1,3327.8,0.00454739]
[1642243705451,0.045463,3328.2,3327.8,2.22561382]
[1642243705654,0.045463,3328.2,3327.9,0.7513]
[1642243705852,0.045463,3328.2,3327.9,0.75527896]
[1642243706053,0.045463,3328.2,3328.0,0.00341054]
[1642243706455,0.045463,3328.2,3328.0,2.05001198]
[1642243706651,0.045463,3328.2,3328.0,0.00341054]
[1642243706854,0.045463,3328.2,3328.1,0.00284212]
[1642243707100,0.045463,3328.3,3328.0,0.00341054]
[1642243707302,0.75244685,3328.8,3328.0,2.04148216]
[1642243707500,0.045463,3328.5,3328.0,0.00341054]
[1642243707700,0.75244685,3328.8,3327.9,0.7513]
[1642243707701,0.045463,3328.4,3328.1,0.00284212]
[1642243707900,0.045463,3328.4,3328.0,0.00341054]
[1642243708102,0.045463,3328.3,3328.0,2.07160071]
[1642243708302,0.045463,3328.3,3328.0,0.00341054]
[1642243708501,1.34758065,3328.1,3327.9,1.5026058]
[1642243708702,1.39304365,3328.1,3327.7,2.6786621]
[1642243708903,0.045463,3328.0,3327.7,1.5025621]
[1642243709109,0.045463,3328.0,3327.8,0.00454739]
[1642243709503,0.045463,3328.0,3327.8,2.05413963]
[1642243709904,0.045463,3328.0,3327.9,0.00397896]
[1642243710106,1.39304365,3328.1,3327.9,0.00397896]
[1642243710505,1.39304365,3328.1,3327.9,0.75527896]
[1642243710951,1.39304365,3328.1,3328.0,0.00341054]
[1642243711152,1.34758065,3328.1,3328.0,0.00341054]
[1642243711656,0.045463,3328.2,3328.0,0.00341054]
[1642243712251,0.045463,3328.2,3328.0,2.04302097]
[1642243712453,0.045463,3328.2,3328.0,0.00341054]
[1642243712651,0.045463,3328.2,3328.1,0.00284212]
[1642243712851,0.045463,3328.2,3327.9,0.7513]
[1642243712852,1.15236274,3328.2,3328.0,0.00341054]
[1642243713053,1.10689974,3328.2,3328.0,2.17330122]
[1642243713454,1.10689974,3328.2,3328.1,0.00284212]
[1642243714257,0.045463,3328.3,3328.1,0.00284212]
[1642243714509,0.045463,3328.3,3328.1,0.75406622]
[1642243714703,0.045463,3328.2,3328.1,0.75406622]
[1642243714902,0.00113685,3328.8,3328.1,0.75406622]
[1642243714903,0.045463,3328.3,3328.2,0.00227369]
[1642243715104,0.045463,3328.3,3328.1,0.00284212]
[1642243715304,0.045463,3328.3,3328.2,0.00227369]
[1642243715507,0.045463,3328.3,3328.1,0.00284212]
[1642243715704,1.39700093,3328.2,3328.1,0.00284212]
[1642243715905,1.44246393,3328.2,3328.1,0.00284212]
[1642243716704,1.39700093,3328.2,3328.0,0.00341054]
[1642243716907,1.44246393,3328.2,3328.0,0.00341054]
[1642243717707,1.39700093,3328.2,3328.0,0.00341054]
[1642243717906,1.44246393,3328.2,3328.0,0.00341054]
[1642243718350,1.39700093,3328.2,3328.0,0.00341054]
[1642243718949,1.44246393,3328.2,3328.0,0.00341054]
[1642243722822,1.39700093,3328.2,3328.0,0.00341054]
[1642243723022,0.045463,3328.1,3328.0,0.00341054]
[1642243723222,0.92385843,3328.2,3327.7,0.00511581]
[1642243728654,0.01166843,3328.1,3327.7,0.00511581]
[1642243728854,0.92385843,3328.2,3327.7,0.00511581]
[1642243730109,0.26781521,3328.0,3327.7,0.00511581]
[1642243730501,0.26781521,3328.0,3327.4,0.00682108]
[1642243731505,1.28824499,3327.6,3327.4,0.00682108]
[1642243732105,1.28824499,3327.6,3327.3,0.00738951]
[1642243738401,0.01390668,3327.5,3327.3,0.00738951]
[1642243738600,1.28824499,3327.6,3327.1,0.00852635]
[1642243740307,0.75970693,3327.5,3327.1,0.00852635]
[1642243740503,0.75161,3327.5,3327.1,0.00852635]
[1642243740749,0.75161,3327.5,3326.8,0.01023162]
[1642243741350,0.75161,3327.5,3326.7,0.01080005]
[1642243743654,1.47171103,3326.9,3326.7,0.01080005]
[1642243743854,2.40261103,3326.9,3326.7,0.01080005]
[1642243744511,2.40261103,3326.9,3326.4,0.01250532]
[1642243745103,0.75178,3326.7,3326.4,0.01250532]
[1642243745406,0.75178,3326.7,3326.1,0.01421059]
[1642243747807,2.53807157,3326.6,3326.1,0.01421059]
[1642243748011,1.37291153,3326.3,3326.1,0.01421059]
[1642243748255,3.73056574,3326.3,3326.1,0.01421059]
[1642243748455,2.32136973,3326.2,3326.1,0.01421059]
[1642243748657,2.32136973,3326.2,3325.5,0.01762113]
[1642243749058,1.41022846,3325.6,3325.5,0.01762113]
[1642243749255,1.1454,3326.4,3325.5,0.01762113]
[1642243749457,2.38423858,3326.3,3325.5,0.01762113]
[1642243749857,6.22192883,3326.5,3325.5,0.01762113]
[1642243750458,1.26010051,3326.0,3325.6,1.27999033]
[1642243750859,0.7519,3326.2,3325.7,0.01648428]
[1642243751257,3.8118,3326.5,3325.7,0.01648428]
[1642243751860,1.18436815,3326.4,3325.7,0.01648428]
[1642243752124,3.8118,3326.5,3325.8,0.7517785]
[1642243752316,1.2215,3327.1,3325.9,2.23342959]
[1642243752514,1.2215,3327.1,3325.9,2.24877702]
[1642243752714,0.15893997,3327.3,3326.0,0.01477901]
[1642243752915,0.15893997,3327.3,3326.0,0.06024201]
[1642243753114,1.4966095,3326.9,3326.6,1.22757123]
[1642243753515,1.4966095,3326.9,3326.7,0.01080005]
[1642243753915,1.4966095,3326.9,3326.4,0.7971038]
[1642243753916,1.4966095,3326.9,3326.6,0.01136847]
[1642243754316,1.4966095,3326.9,3326.5,0.01193689]
[1642243754717,2.2483495,3326.9,3326.5,0.01193689]
[1642243755320,2.47134187,3326.8,3326.5,0.01193689]
[1642243755518,2.47134187,3326.8,3326.1,0.01421059]
[1642243755953,1.06488785,3326.6,3326.1,0.01421059]
[1642243756149,0.75185,3326.4,3326.1,0.01421059]
[1642243757651,1.40416082,3326.3,3326.1,0.01421059]
[1642243761203,0.27357311,3326.6,3326.2,0.75167]
[1642243761703,0.27357311,3326.6,3326.3,0.01307374]
[1642243762604,0.27357311,3326.6,3326.3,0.76474914]
[1642243762605,1.38869365,3326.5,3326.3,0.76474914]
[1642243762807,1.38869365,3326.5,3326.3,0.01307374]
[1642243763007,1.38869365,3326.5,3326.4,0.01250532]
[1642243763255,1.38869365,3326.5,3326.1,0.01421059]
[1642243764356,1.38869365,3326.5,3326.2,2.57058203]
[1642243764755,1.38869365,3326.5,3326.3,0.01307374]
[1642243766357,1.38869365,3326.5,3326.2,0.01364216]
[1642243767202,1.38869365,3326.5,3326.1,0.01421059]
[1642243768502,2.14053365,3326.5,3325.8,0.01591586]
[1642243769506,2.14053365,3326.5,3325.9,2.57071355]
[1642243769808,2.14053365,3326.5,3326.0,0.01477901]
[1642243771051,4.46769699,3326.5,3326.0,0.01477901]
[1642243771255,2.14053365,3326.5,3326.0,0.01477901]
[1642243771449,2.14053365,3326.5,3325.7,0.045463]
[1642243771450,2.14053365,3326.5,3325.8,0.01591586]
[1642243771850,1.12365259,3325.9,3325.8,0.01591586]
[1642243772255,0.27357311,3326.6,3325.8,1.51932586]
[1642243772455,0.27357311,3326.6,3325.9,2.17777567]
[1642243772654,0.27357311,3326.6,3325.9,2.21998594]
[1642243772852,0.27357311,3326.6,3326.0,0.01477901]
[1642243773253,1.3513924,3326.2,3325.9,0.01534743]
[1642243773457,1.3513924,3326.2,3325.9,1.51873363]
[1642243773957,0.27357311,3326.6,3326.1,0.75171]
[1642243774353,0.27357311,3326.6,3326.2,0.01364216]
[1642243774603,0.27357311,3326.6,3326.2,2.05671686]
[1642243774802,0.27357311,3326.6,3326.2,2.04604173]
[1642243775001,0.27357311,3326.6,3326.1,0.75171]
[1642243775002,1.16483681,3326.4,3326.3,0.01307374]
[1642243775404,1.16483681,3326.4,3326.2,0.01364216]
[1642243775605,1.16483681,3326.4,3326.0,0.01477901]
[1642243776003,1.16483681,3326.4,3326.1,1.503452]
[1642243776204,1.16483681,3326.4,3326.1,1.548915]
[1642243776404,1.16483681,3326.4,3326.2,2.04215362]
[1642243776607,1.16483681,3326.4,3326.2,0.01364216]
[1642243776906,1.16483681,3326.4,3326.2,2.05432993]
[1642243777104,1.16483681,3326.4,3326.2,0.01364216]
[1642243777305,1.16483681,3326.4,3326.3,0.01307374]
[1642243777505,1.16483681,3326.4,3326.2,0.01364216]
[1642243777707,1.16483681,3326.4,3326.2,2.05537443]
[1642243777906,1.16483681,3326.4,3326.2,0.01364216]
[1642243778107,1.16483681,3326.4,3326.3,0.01307374]
[1642243778350,1.16483681,3326.4,3326.2,0.01364216]
[1642243780454,1.16483681,3326.4,3326.2,2.10708348]
[1642243780751,1.16483681,3326.4,3326.3,0.01307374]
[1642243781553,1.16483681,3326.4,3326.2,2.06976255]
[1642243781757,1.16483681,3326.4,3326.2,2.06455602]
[1642243781999,1.16483681,3326.4,3326.3,0.01307374]
[1642243782400,1.16483681,3326.4,3326.2,0.01364216]
[1642243785504,1.16483681,3326.4,3326.2,0.76535966]
[1642243785951,1.16483681,3326.4,3326.3,0.01307374]
[1642243786452,1.16483681,3326.4,3326.2,0.01364216]
[1642243794751,1.16483681,3326.4,3325.6,8.465327]
[1642243794752,1.16483681,3326.4,3325.8,0.01591586]
[1642243795555,1.91669681,3326.4,3325.8,0.01591586]
[1642243798006,0.77076895,3326.2,3325.8,0.01591586]
[1642243798307,0.77076895,3326.2,3325.9,0.045463]
[1642243798705,1.91669681,3326.4,3326.0,0.01477901]
[1642243799711,1.16483681,3326.4,3326.0,0.01477901]
[1642243807312,1.14984017,3326.4,3326.0,0.01477901]
[1642243808355,2.99164017,3326.4,3326.0,0.01477901]
[1642243808956,2.99164017,3326.4,3325.8,0.01591586]
[1642243810757,0.00865596,3326.3,3325.8,0.01591586]
[1642243810956,0.75201,3326.1,3325.8,0.01591586]
[1642243812413,0.77861412,3325.8,3325.0,7.2867302]
[1642243812717,0.7446598,3325.1,3325.0,7.2867302]
[1642243812913,0.7446598,3325.1,3325.0,2.2558302]
[1642243813113,0.7446598,3325.1,3325.0,0.00454738]
[1642243813312,2.08355407,3325.1,3325.0,0.00454738]
[1642243814111,1.33889427,3325.1,3325.0,0.00454738]
[1642243814711,1.33889427,3325.1,3325.0,2.57579833]
[1642243821911,2.78949956,3325.1,3325.0,2.57579833]
[1642243822212,1.33889427,3325.1,3325.0,2.57579833]
[1642243831767,1.33889427,3325.1,3325.0,4.8479347]
[1642243832973,1.19788832,3325.6,3325.0,5.5997747]
[1642243832974,0.045463,3325.6,3325.0,5.5997747]
[1642243833171,0.00113685,3326.0,3325.5,2.60082032]
[1642243833373,0.00113685,3326.0,3325.4,1.9496]
[1642243833570,0.00113685,3326.0,3325.6,0.00113684]
[1642243833770,0.00113685,3326.0,3325.6,0.751765]
[1642243833970,0.00113685,3326.0,3325.7,2.21635142]
[1642243834171,1.39104146,3326.0,3325.7,2.21635142]
[1642243834508,1.39104146,3326.0,3325.7,0.75177]
[1642243835308,1.25399343,3325.9,3325.7,0.75177]
[1642243837106,1.25399343,3325.9,3325.6,2.25643184]
[1642243837707,1.25399343,3325.9,3325.6,1.50466684]
[1642243840255,1.25399343,3325.9,3325.6,0.00113684]
[1642243840657,1.25399343,3325.9,3325.5,2.01485994]
[1642243840860,1.25399343,3325.9,3325.6,0.00113684]
[1642243841062,1.29945643,3325.9,3325.6,0.00113684]
[1642243841458,1.29945643,3325.9,3325.5,0.00170527]
[1642243843914,1.29945643,3325.9,3325.5,2.01586246]
[1642243844113,1.25399343,3325.9,3325.5,0.00170527]
[1642243844313,1.25399343,3325.9,3325.6,0.00113684]
[1642243844514,1.25399343,3325.9,3325.5,0.75357607]
[1642243844714,1.25399343,3325.9,3325.6,0.00113684]
[1642243845315,1.25399343,3325.9,3325.5,0.00170527]
[1642243847355,1.25399343,3325.9,3325.6,0.75187]
[1642243849507,1.25399343,3325.9,3325.6,2.80245475]
[1642243850009,1.25399343,3325.9,3325.6,0.75187]
[1642243853113,1.24388523,3325.9,3325.6,0.75187]
[1642243858510,1.24388523,3325.9,3325.7,2.01630014]
[1642243859711,1.24388523,3325.9,3325.6,1.5037347]
[1642243860411,1.24388523,3325.9,3325.7,2.01243107]
[1642243860612,1.24388523,3325.9,3325.6,1.5037347]
[1642243861258,1.24388523,3325.9,3325.7,2.05466228]
[1642243864162,1.24388523,3325.9,3325.7,2.01556864]
[1642243865410,1.24388523,3325.9,3325.6,0.75187]
[1642243866212,1.24388523,3325.9,3325.7,2.04650183]
[1642243866810,1.24388523,3325.9,3325.6,0.75187]
[1642243868014,1.24388523,3325.9,3325.7,2.12602148]
[1642243869157,1.24388523,3325.9,3325.6,0.75187]
[1642243871058,1.24388523,3325.9,3325.7,2.02662823]
[1642243871257,1.24388523,3325.9,3325.6,0.75187]
[1642243873215,1.24388523,3325.9,3325.5,0.00170527]
[1642243875218,1.24388523,3325.9,3325.6,0.75189]
[1642243876561,1.24388523,3325.9,3325.7,2.0446504]
[1642243876965,1.24388523,3325.9,3325.6,0.75189]
[1642243878365,1.24388523,3325.9,3325.6,1.5037337]
[1642243880309,1.24388523,3325.9,3325.7,2.02474469]
[1642243880511,1.24388523,3325.9,3325.6,1.5037337]
[1642243880909,1.24388523,3325.9,3325.6,0.75189]
[1642243881510,1.24388523,3325.9,3325.6,1.5037249]
[1642243882713,1.24388523,3325.9,3325.7,2.12126638]
[1642243883860,1.24388523,3325.9,3325.6,0.75189]
[1642243885859,1.24388523,3325.9,3325.6,1.5037352]
[1642243886360,1.24388523,3325.9,3325.6,0.75189]
[1642243887509,1.24388523,3325.9,3325.5,1.503631]
[1642243887913,1.24388523,3325.9,3325.6,0.00113684]
[1642243888711,1.24388523,3325.9,3325.5,0.00170527]
[1642243889714,1.24388523,3325.9,3325.5,0.75358767]
[1642243890114,1.24388523,3325.9,3325.6,0.75187]
[1642243891661,1.24388523,3325.9,3325.5,0.75358767]
[1642243891860,1.24388523,3325.9,3325.5,0.00170527]
[1642243892463,0.51456811,3325.8,3325.5,0.00170527]
[1642243893960,1.24388523,3325.9,3325.5,0.00170527]
[1642243894162,1.24388523,3325.9,3325.6,0.75186]
[1642243895714,1.24388523,3325.9,3325.6,1.5036976]
[1642243896109,1.24388523,3325.9,3325.6,0.75186]
[1642243896411,1.24388523,3325.9,3325.5,0.00170527]
[1642243899867,1.24388523,3325.9,3325.6,0.75188]
[1642243900667,1.24388523,3325.9,3325.5,0.00170527]
[1642243903213,1.24388523,3325.9,3325.5,2.105917]
[1642243904515,1.24388523,3325.9,3325.5,0.00170527]
[1642243904717,1.24388523,3325.9,3325.6,0.75188]
[1642243910013,1.21921438,3325.9,3325.6,0.75188]
[1642243913461,1.21921438,3325.9,3325.5,0.00170527]
[1642243916461,1.21921438,3325.9,3325.6,0.75187]
[1642243921067,1.21921438,3325.9,3325.5,2.07260604]
[1642243922066,1.21921438,3325.9,3325.5,2.01811829]
[1642243922264,1.21921438,3325.9,3325.5,2.76309202]
[1642243922464,1.21921438,3325.9,3325.5,0.00170527]
[1642243922865,1.21921438,3325.9,3325.5,2.04124472]
[1642243923065,1.21921438,3325.9,3325.5,0.00170527]
[1642243923665,1.21921438,3325.9,3325.3,0.00284211]
[1642243924265,0.5145737,3325.8,3325.3,0.00284211]
[1642243924722,0.5145737,3325.8,3325.2,0.00341054]
[1642243926925,0.5145737,3325.8,3325.3,0.75194]
[1642243927326,0.5145737,3325.8,3325.4,0.00227369]
[1642243928666,0.5145737,3325.8,3325.4,0.75418369]
[1642243929065,0.5145737,3325.8,3325.5,0.00170527]
[1642243930467,0.5145737,3325.8,3325.5,0.75358967]
[1642243933910,0.5600367,3325.8,3325.5,0.75358967]
[1642243935011,0.045463,3325.8,3325.5,0.00170527]
[1642243936863,0.045463,3325.8,3325.4,0.70361527]
[1642243937064,0.00113685,3325.7,3325.4,0.70361527]
[1642243938364,0.00113685,3325.7,3325.5,0.7518858]
[1642243938962,0.00113685,3325.7,3325.2,2.05272161]
[1642243939363,0.00113685,3325.7,3325.3,0.00113684]
[1642243940214,0.00113685,3325.7,3325.3,2.57235486]
[1642243942015,0.00113685,3325.7,3325.3,0.00113684]
[1642243942914,0.00113685,3325.7,3325.3,0.75308684]
[1642243944965,0.00113685,3325.7,3325.4,0.7519044]
[1642243945167,0.00113685,3325.7,3325.4,1.5038144]
[1642243946367,0.00113685,3325.7,3325.4,1.50055681]
[1642243947928,0.00113685,3325.7,3325.5,2.04702672]
[1642243948129,0.00113685,3325.7,3325.5,2.08082298]
[1642243948329,0.00113685,3325.7,3325.4,1.50055681]